lending/lending_fUSD_20260330
["ID","MTS","AMOUNT","RATE_DAILY","PERIOD"]
[419077010,1774839042657,-500.0,0.00013699,2]
[419077011,1774839042666,-500.0,0.00013699,2]
[419077012,1774839042676,-500.0,0.00013699,2]
[419077013,1774839042687,-500.69650197,0.00013699,2]
[419077014,1774839042697,-211.00600243,0.00013699,2]
[419077015,1774839042707,-500.0,0.00013699,2]
[419077016,1774839042717,-500.0,0.00013699,2]
[419077017,1774839042727,-500.0,0.00013699,2]
[419077018,1774839042736,-500.0,0.00013699,2]
[419077019,1774839042746,-518.37754509,0.00013699,2]
[419077020,1774839042756,-500.0,0.00013699,2]
[419077021,1774839042766,-500.28264632,0.00013699,2]
[419077022,1774839042775,-500.0,0.00013699,2]
[419077023,1774839042785,-500.0,0.00013699,2]
[419077024,1774839042795,-555.93,0.00013699,2]
[419077025,1774839042804,-500.0,0.00013699,2]
[419077026,1774839042814,-165.75704705,0.00013699,2]
[419077027,1774839042824,-4168.27,0.000137,2]
[419077028,1774839042834,-4609.76,0.000137,2]
[419077029,1774839042843,-2885.62,0.000137,2]
[419077030,1774839042854,-524.01,0.000137,2]
[419077031,1774839042865,-524.01,0.000137,2]
[419077032,1774839042875,-524.01,0.000137,2]
[419077033,1774839042885,-524.01,0.000137,2]
[419077034,1774839042895,-524.01,0.000137,2]
[419077035,1774839042906,-171.44,0.00013715,2]
[419077036,1774839042915,-1613.0,0.00013764,2]
[419077037,1774839042924,-6453.0,0.00013764,2]
[419077038,1774839042934,-152.0,0.00013777,7]
[419077039,1774839042944,-1500.0,0.000138,2]
[419077040,1774839042953,-166.66,0.00013817,2]
[419077041,1774839042963,-4996.92286626,0.00013828,2]
[419077042,1774839042973,-176.752086,0.00013833,7]
[419077043,1774839042982,-160.0,0.00013833,7]
[419077044,1774839042992,-318.429687,0.00013833,7]
[419077045,1774839043002,-217.769436,0.00013833,7]
[419077046,1774839043012,-160.0,0.00013833,7]
[419077047,1774839043022,-152.0,0.00013888,8]
[419077048,1774839043033,-2129.0,0.00013929,2]
[419077049,1774839043043,-375.58518786,0.00013941,2]
[419077050,1774839043054,-500.0,0.00013941,2]
[419077051,1774839043065,-500.0,0.00013941,2]
[419077052,1774839043076,-500.0,0.00013941,2]
[419077053,1774839043087,-1061.69,0.00013941,2]
[419077054,1774839043098,-500.0,0.00013941,2]
[419077055,1774839043109,-555.93,0.00013973,2]
[419077056,1774839043119,-339.1781,0.00014,17]
[419077057,1774839043130,-200.0,0.00014,2]
[419077058,1774839043140,-152.0,0.00014,9]
[419077059,1774839043151,-168.24,0.00014014,2]
[419077060,1774839043161,-168.24,0.00014014,2]
[419077061,1774839043171,-3435.23333398,0.00014081,2]
[419077067,1774839048381,-200.0,0.00013151,2]
[419077068,1774839048390,-200.0,0.00013151,2]
[419077069,1774839048399,-200.0,0.00013151,2]
[419077070,1774839048408,-200.0,0.00013151,2]
[419077071,1774839048421,-200.0,0.00013151,2]
[419077072,1774839048430,-200.0,0.00013151,2]
[419077073,1774839048439,-200.0,0.00013151,2]
[419077074,1774839048449,-200.0,0.00013151,2]
[419077075,1774839048459,-200.0,0.00013151,2]
[419077076,1774839048468,-144.162886,0.00013151,2]
[419077077,1774839048483,-55.837114,0.00013151,2]
[419077078,1774839048492,-200.0,0.00013151,2]
[419077079,1774839048502,-60.293386,0.00013151,2]
[419077080,1774839048514,-139.706614,0.00013151,2]
[419077081,1774839048523,-200.0,0.00013151,2]
[419077082,1774839048532,-160.293386,0.00013151,2]
[419077083,1774839048555,-39.706614,0.00013151,2]
[419077084,1774839048564,-200.0,0.00013151,2]
[419077085,1774839048575,-200.0,0.00013151,2]
[419077086,1774839048584,-200.0,0.00013151,2]
[419077087,1774839048594,-38.30695834,0.00013151,2]
[419077088,1774839048635,500.0,8.546e-05,2]
[419077089,1774839048687,500.0,8.546e-05,2]
[419077090,1774839048727,500.0,8.546e-05,2]
[419077108,1774839049179,500.0,8.546e-05,2]
[419077109,1774839049193,-161.69304166,0.00013151,2]
[419077110,1774839049204,-200.0,0.00013151,2]
[419077111,1774839049213,-200.0,0.00013151,2]
[419077112,1774839049223,-145.7919537,0.00013482,2]
[419077113,1774839049269,500.0,8.546e-05,2]
[419077114,1774839049282,-6164.79269826,0.00013482,2]
[419077115,1774839049295,-5271.2926464,0.00013482,2]
[419077116,1774839049306,-345.035034,0.00013489,2]
[419077117,1774839049316,-210.56462019,0.00013697,2]
[419077118,1774839049326,-2309.90269998,0.00014081,2]
[419077119,1774839049366,260.33648493,8.546e-05,2]
[419077120,1774839058750,173.61,9e-05,3]
[419077121,1774839089128,10000.01,8.547e-05,2]
[419077122,1774839089154,2239.67351507,8.547e-05,2]
[419077123,1774839089179,5000.01,8.547e-05,2]
[419077124,1774839094570,-500.0,8.546e-05,2]
[419077125,1774839094608,-500.0,8.546e-05,2]
[419077126,1774839094643,-500.0,8.546e-05,2]
[419077127,1774839094677,-500.0,8.546e-05,2]
[419077128,1774839094711,-500.0,8.546e-05,2]
[419077129,1774839094748,-500.0,8.546e-05,2]
[419077130,1774839094780,-581.70237523,8.546e-05,2]
[419077131,1774839108608,-1866.73793,8.547e-05,2]
[419077132,1774839108689,-5000.01,8.547e-05,2]
[419077133,1774839108808,-5000.01,8.547e-05,2]
[419077134,1774839111550,-5000.01,8.547e-05,2]
[419077135,1774839111684,-5000.01,8.547e-05,2]
[419077136,1774839111828,-5000.01,8.547e-05,2]
[419077137,1774839111932,-5000.01,8.547e-05,2]
[419077138,1774839112098,-5000.01,8.547e-05,2]
[419077139,1774839112197,-5000.01,8.547e-05,2]
[419077140,1774839112291,-5000.01,8.547e-05,2]
[419077141,1774839112673,-4389.89921464,8.547e-05,2]
[419077142,1774839112768,-10000.01,8.547e-05,2]
[419077143,1774839112867,-10000.01,8.547e-05,2]
[419077144,1774839113020,-10000.01,8.547e-05,2]
[419077145,1774839113181,-10000.01,8.547e-05,2]
[419077146,1774839113315,-10000.01,8.547e-05,2]
[419077147,1774839113547,-10000.01,8.547e-05,2]
[419077148,1774839113702,-10000.01,8.547e-05,2]
[419077149,1774839114508,-5000.01,8.547e-05,2]
[419077150,1774839114693,-5000.01,8.547e-05,2]
[419077151,1774839114828,-5000.01,8.547e-05,2]
[419077152,1774839114936,-5000.01,8.547e-05,2]
[419077153,1774839115039,-5000.01,8.547e-05,2]
[419077154,1774839115144,-5000.01,8.547e-05,2]
[419077155,1774839115238,-5000.01,8.547e-05,2]
[419077156,1774839115432,-10000.01,8.547e-05,2]
[419077157,1774839115527,-10000.01,8.547e-05,2]
[419077158,1774839117714,-5000.01,8.547e-05,2]
[419077159,1774839118451,-10000.01,8.547e-05,2]
[419077160,1774839118558,-10000.01,8.547e-05,2]
[419077161,1774839118703,-10000.01,8.547e-05,2]
[419077162,1774839118800,479.83,8.246e-05,2]
[419077163,1774839133219,-414.8311,8.545e-05,2]
[419077164,1774839133311,-9170.3478,8.547e-05,2]
[419077165,1774839133371,-10000.01,8.547e-05,2]
[419077166,1774839133488,-10000.01,8.547e-05,2]
[419077167,1774839133587,-10000.01,8.547e-05,2]
[419077168,1774839138644,-500.0,8.546e-05,2]
[419077169,1774839138693,-500.0,8.546e-05,2]
[419077170,1774839138740,-350.00000001,8.546e-05,2]
[419077171,1774839138907,-7300.00999998,8.547e-05,2]
[419077172,1774839138979,-10000.01,8.547e-05,2]
[419077173,1774839144699,-10000.01,8.547e-05,2]
[419077174,1774839144811,-10000.01,8.547e-05,2]
[419077175,1774839147825,-10000.01,8.547e-05,2]
[419077176,1774839148003,-10000.01,8.547e-05,2]
[419077177,1774839148147,-10000.01,8.547e-05,2]
[419077178,1774839148248,-10000.01,8.547e-05,2]
[419077179,1774839148356,-10000.01,8.547e-05,2]
[419077180,1774839150723,-10000.01,8.547e-05,2]
[419077181,1774839150824,-10000.01,8.547e-05,2]
[419077182,1774839153776,-10000.01,8.547e-05,2]
[419077183,1774839153868,-10000.01,8.547e-05,2]
[419077184,1774839153979,-10000.01,8.547e-05,2]
[419077185,1774839154167,-10000.01,8.547e-05,2]
[419077186,1774839154223,-10000.01,8.547e-05,2]
[419077187,1774839159936,-10000.01,8.547e-05,2]
[419077188,1774839160072,-10000.01,8.547e-05,2]
[419077189,1774839173045,-10000.01,8.547e-05,2]
[419077190,1774839173238,-10000.01,8.547e-05,2]
[419077191,1774839182163,483.7,8.333e-05,2]
[419077192,1774839223099,-300.0,8.546e-05,2]
[419077193,1774839223163,-9400.01,8.547e-05,2]
[419077194,1774839223190,-10000.01,8.547e-05,2]
[419077195,1774839223272,-10000.01,8.547e-05,2]
[419077196,1774839223411,-10000.01,8.547e-05,2]
[419077197,1774839223518,-10000.01,8.547e-05,2]
[419077198,1774839223622,-10000.01,8.547e-05,2]
[419077199,1774839223806,-10000.01,8.547e-05,2]
[419077200,1774839223919,-10000.01,8.547e-05,2]
[419077201,1774839224022,-10000.01,8.547e-05,2]
[419077202,1774839234795,-10000.01,8.547e-05,2]
[419077203,1774839234903,-10000.01,8.547e-05,2]
[419077204,1774839234995,-10000.01,8.547e-05,2]
[419077205,1774839235082,-10000.01,8.547e-05,2]
[419077206,1774839235181,-10000.01,8.547e-05,2]
[419077207,1774839235280,-10000.01,8.547e-05,2]
[419077208,1774839235381,-10000.01,8.547e-05,2]
[419077209,1774839235594,-10000.01,8.547e-05,2]
[419077210,1774839235735,-10000.01,8.547e-05,2]
[419077211,1774839246033,1632.02,8.155e-05,2]
[419077212,1774839246112,2747.31,8.265e-05,2]
[419077213,1774839246232,136.98,8.507e-05,2]
[419077214,1774839246737,880.16,8.507e-05,2]
[419077215,1774839293192,500.0,8.447e-05,2]
[419077216,1774839310258,375.05,8.194e-05,2]
[419077217,1774839463245,200.0,8.5e-05,2]
[419077218,1774839506416,651.62,8.162e-05,2]
[419077219,1774839522003,159.0,6.644e-05,2]
[419077220,1774839522235,153.0,6.644e-05,2]
[419077221,1774839522481,153.0,6.644e-05,2]
[419077222,1774839522691,153.0,6.644e-05,2]
[419077223,1774839522935,153.0,6.644e-05,2]
[419077224,1774839523202,153.0,6.644e-05,2]
[419077225,1774839523435,153.0,6.644e-05,2]
[419077226,1774839687990,170.892,8.376e-05,2]
[419077227,1774839688025,3685.707,8.376e-05,2]
[419077228,1774839689876,539.87,6.484e-05,2]
[419077229,1774839795331,304.37,0.00010419,30]
[419077231,1774839859019,603.541,8.019e-05,2]
[419077232,1774839859041,1226.999,8.019e-05,2]
[419077233,1774839873554,578.91,8.219e-05,2]
[419077234,1774839886604,150.0,0.00011233,120]
[419077236,1774839910527,166.66,8.236e-05,2]
[419077237,1774839910721,166.66,8.508e-05,2]
[419077238,1774839928697,300.5,9.79e-05,30]
[419077242,1774840023932,1100.0,8.9e-05,3]
[419077243,1774840025967,671.39,9e-05,3]
[419077244,1774840025996,1528.61,9e-05,3]
[419077245,1774840058944,581.2,8.053e-05,2]
[419077246,1774840123267,338.57,7.312e-05,2]
[419077247,1774840123778,200.71,8.046e-05,2]
[419077248,1774840127531,296.67,0.00010123,30]
[419077257,1774840139201,1600.0,7.918e-05,2]
[419077258,1774840188888,140.301,7.061e-05,2]
[419077259,1774840188912,659.699,7.061e-05,2]
[419077260,1774840189407,1320.0,7.131e-05,2]
[419077261,1774840189924,1233.5,7.334e-05,2]
[419077262,1774840190436,1500.0,7.587e-05,2]
[419077263,1774840190963,286.811,7.71e-05,2]
[419077264,1774840190989,1413.189,7.71e-05,2]
[419077265,1774840191479,810.0,7.918e-05,2]
[419077266,1774840191983,1170.0,8.038e-05,2]
[419077267,1774840192516,951.99,8.296e-05,2]
[419077309,1774840233008,-1200.0,8.544e-05,2]
[419077310,1774840233018,-300.0,8.544e-05,2]
[419077311,1774840233028,-239.0,8.544e-05,2]
[419077312,1774840233038,-250.0,8.544e-05,2]
[419077313,1774840233047,-1082.81881226,8.544e-05,2]
[419077314,1774840233085,-3047.98883886,8.544e-05,2]
[419077315,1774840233095,-250.0,8.545e-05,2]
[419077316,1774840233105,-150.0,8.545e-05,2]
[419077317,1774840233114,-300.0,8.545e-05,2]
[419077318,1774840233125,-3869.56401357,8.546e-05,2]
[419077319,1774840233134,-500.0,8.546e-05,2]
[419077320,1774840233144,-268.76261061,8.546e-05,2]
[419077321,1774840233153,-150.0,8.547e-05,2]
[419077322,1774840233163,-978616.9248272,8.547e-05,2]
[419077323,1774840233172,-717.0923,8.647e-05,2]
[419077324,1774840233182,-2457.55,8.647e-05,2]
[419077325,1774840233192,-1560.46,8.647e-05,2]
[419077326,1774840233202,-6080.8,8.664e-05,2]
[419077327,1774840233212,-9999.99,8.664e-05,2]
[419077328,1774840233222,-203.87523721,8.664e-05,2]
[419077329,1774840233234,-9796.11476279,8.664e-05,2]
[419077330,1774840233243,-4148.0,8.664e-05,2]
[419077331,1774840233252,-150.99,8.664e-05,2]
[419077332,1774840233262,-500.0,8.691e-05,2]
[419077333,1774840233271,-552.12,8.699e-05,2]
[419077334,1774840233281,-845.93,8.723e-05,2]
[419077335,1774840233290,-53078.96658883,8.723e-05,2]
[419077336,1774840233301,-35278.70448749,8.723e-05,2]
[419077337,1774840233328,-300.0,8.723e-05,2]
[419077338,1774840238013,-704.15949,8.723e-05,2]
[419077339,1774840238026,-798.75545663,8.723e-05,2]
[419077340,1774840238072,-296.67625139,8.723e-05,2]
[419077341,1774840238084,-1539.52799384,8.723e-05,2]
[419077342,1774840238095,-3445.06180023,8.723e-05,2]
[419077343,1774840238107,-5496.73022586,8.723e-05,2]
[419077344,1774840238120,-1471.35248358,8.723e-05,2]
[419077351,1774840240748,-1256.69711445,8.723e-05,2]
[419077352,1774840240760,-91752.0481077,8.723e-05,2]
[419077353,1774840240769,-166.66,8.78e-05,2]
[419077354,1774840240779,-340.61,8.793e-05,2]
[419077355,1774840240788,-4243.49,8.815e-05,2]
[419077356,1774840240798,-4653.0464224,8.821e-05,2]
[419077357,1774840240807,-500.0,8.829e-05,2]
[419077358,1774840240816,-2624.82,8.837e-05,2]
[419077359,1774840240826,-619.32,8.868e-05,2]
[419077360,1774840240836,-150.0,8.9e-05,2]
[419077361,1774840240846,-1600.0,8.908e-05,2]
[419077362,1774840240856,-1000.0,8.999e-05,2]
[419077363,1774840240866,-166.66,9.051e-05,2]
[419077364,1774840240875,-448.59,9.1e-05,2]
[419077365,1774840240885,-166.66,9.323e-05,2]
[419077366,1774840240894,-1680.0,9.398e-05,2]
[419077367,1774840240904,-234.0,9.398e-05,2]
[419077368,1774840240914,-194.61263594,9.398e-05,2]
[419077369,1774840240924,-5000.0,9.398e-05,2]
[419077370,1774840240933,-3698.8545456,9.398e-05,2]
[419077371,1774840240943,-250.0,9.398e-05,2]
[419077372,1774840240953,-255.0,9.4e-05,2]
[419077373,1774840240965,-420.0,9.4e-05,2]
[419077374,1774840240975,-500.0,9.4e-05,2]
[419077375,1774840240984,-652.38,9.462e-05,2]
[419077376,1774840240994,-71912.00971248,9.5e-05,3]
[419077377,1774840241005,-166.66,9.595e-05,2]
[419077378,1774840241015,-157.0,9.6e-05,2]
[419077379,1774840241024,-157.0,9.6e-05,2]
[419077380,1774840241034,-3318.94,9.67e-05,2]
[419077381,1774840241044,-13215.7,9.67e-05,2]
[419077382,1774840241054,-13555.55,9.67e-05,2]
[419077383,1774840241064,-500.0,9.674e-05,2]
[419077384,1774840241073,-978.28,9.779e-05,2]
[419077385,1774840241083,-150.0,9.791e-05,2]
[419077386,1774840241092,-150.0,9.791e-05,2]
[419077387,1774840241102,-150.0,9.791e-05,2]
[419077388,1774840241112,-197.65781346,9.791e-05,2]
[419077389,1774840241122,-1600.0,9.898e-05,2]
[419077390,1774840241131,-500.0,9.948e-05,2]
[419077391,1774840241141,-324.63190009,0.0001,2]
[419077392,1774840241151,-637.43779345,0.0001,2]
[419077393,1774840241161,-1129.269588,0.0001,2]
[419077394,1774840241170,-1129.269588,0.0001,2]
[419077395,1774840241181,-1129.269588,0.0001,2]
[419077396,1774840241190,-1129.269588,0.0001,2]
[419077397,1774840241199,-500.0,0.0001,2]
[419077398,1774840241208,-500.0,0.0001,2]
[419077399,1774840241218,-500.0,0.0001,2]
[419077400,1774840241227,-500.0,0.0001,2]
[419077401,1774840241236,-500.0,0.0001,2]
[419077402,1774840241246,-500.0,0.0001,2]
[419077403,1774840241256,-500.0,0.0001,2]
[419077404,1774840241265,-500.0,0.0001,2]
[419077405,1774840241274,-500.0,0.0001,2]
[419077406,1774840241285,-500.0,0.0001,2]
[419077407,1774840241295,-500.0,0.0001,2]
[419077408,1774840241305,-151.0,0.0001,2]
[419077409,1774840241315,-151.0,0.0001,2]
[419077410,1774840241325,-151.0,0.0001,2]
[419077411,1774840241335,-383.83703057,0.0001,2]
[419077412,1774840241346,-151.0,0.0001,2]
[419077413,1774840241355,-151.0,0.0001,2]
[419077414,1774840241364,-200.0,0.0001,2]
[419077415,1774840241374,-151.0,0.0001,2]
[419077416,1774840241383,-500.0,0.0001,2]
[419077417,1774840241393,-151.0,0.0001,2]
[419077418,1774840241404,-151.0,0.0001,2]
[419077419,1774840241414,-500.0,0.0001,2]
[419077420,1774840241424,-151.0,0.0001,2]
[419077421,1774840241434,-500.0,0.0001,2]
[419077422,1774840241444,-151.0,0.0001,2]
[419077423,1774840241456,-151.0,0.0001,2]
[419077424,1774840241465,-500.0,0.0001,2]
[419077425,1774840241475,-151.0,0.0001,2]
[419077426,1774840241485,-500.0,0.0001,2]
[419077427,1774840241495,-500.0,0.0001,2]
[419077428,1774840241504,-151.0,0.0001,2]
[419077429,1774840241513,-500.0,0.0001,2]
[419077430,1774840241524,-500.0,0.0001,2]
[419077431,1774840241533,-500.0,0.0001,2]
[419077432,1774840241543,-151.0,0.0001,2]
[419077433,1774840241552,-500.0,0.0001,2]
[419077434,1774840241563,-151.0,0.0001,2]
[419077435,1774840241573,-500.0,0.0001,2]
[419077436,1774840241583,-151.0,0.0001,2]
[419077437,1774840241594,-151.0,0.0001,2]
[419077438,1774840241603,-151.0,0.0001,2]
[419077439,1774840241613,-151.0,0.0001,2]
[419077440,1774840241623,-151.0,0.0001,2]
[419077441,1774840241633,-151.0,0.0001,2]
[419077442,1774840241642,-151.0,0.0001,2]
[419077443,1774840241652,-151.0,0.0001,2]
[419077444,1774840241662,-151.0,0.0001,2]
[419077445,1774840241672,-151.0,0.0001,2]
[419077446,1774840241681,-151.0,0.0001,2]
[419077447,1774840241691,-151.0,0.0001,2]
[419077448,1774840241701,-151.0,0.0001,2]
[419077449,1774840241711,-151.0,0.0001,2]
[419077450,1774840241720,-151.0,0.0001,2]
[419077451,1774840241730,-1386.78395259,0.0001,2]
[419077452,1774840241739,-151.0,0.0001,2]
[419077453,1774840241749,-151.0,0.0001,2]
[419077454,1774840241759,-151.0,0.0001,2]
[419077455,1774840241769,-151.0,0.0001,2]
[419077456,1774840241779,-150.0,0.0001,2]
[419077457,1774840241790,-150.0,0.0001,2]
[419077458,1774840241800,-151.0,0.0001,2]
[419077459,1774840241809,-152.59354707,0.0001,2]
[419077460,1774840241820,-218.64346577,0.0001,2]
[419077461,1774840241830,-1612.0,0.00010065,2]
[419077462,1774840241840,-500.0,0.000101,2]
[419077463,1774840241852,-500.70547877,0.000101,2]
[419077464,1774840241862,-261.50854217,0.000101,2]
[419077465,1774840241871,-4653.0464224,0.00010168,2]
[419077466,1774840241881,-151.0,0.00010215,2]
[419077467,1774840241890,-421.60378826,0.00010222,2]
[419077468,1774840241902,-500.63749024,0.00010275,2]
[419077469,1774840241912,-500.31742953,0.00010275,2]
[419077470,1774840241923,-2351.0,0.00010338,2]
[419077471,1774840241932,-327.0,0.00010339,2]
[419077472,1774840241942,-216.446537,0.0001034,2]
[419077473,1774840241953,-216.446537,0.0001034,2]
[419077474,1774840241962,-216.446537,0.0001034,2]
[419077475,1774840241972,-216.446537,0.0001034,2]
[419077476,1774840241982,-151.0,0.0001034,2]
[419077477,1774840241992,-151.0,0.0001034,2]
[419077478,1774840242002,-151.0,0.0001034,2]
[419077479,1774840242012,-433.0,0.0001034,2]
[419077480,1774840242022,-218358.9511606,0.0001035,2]
[419077481,1774840242031,-600.0,0.00010382,2]
[419077482,1774840242041,-196.8808,0.000104,7]
[419077483,1774840242050,-308.47,0.00010442,2]
[419077484,1774840242060,-200.0,0.00010548,2]
[419077485,1774840242070,-1386.7839526,0.00010548,2]
[419077486,1774840242079,-152.82264291,0.00010548,2]
[419077487,1774840242089,-151.0,0.00010586,2]
[419077488,1774840242098,-292.9,0.00010687,30]
[419077489,1774840242109,-270.09856999,0.000107,2]
[419077490,1774840242119,-1003.81201125,0.0001075,30]
[419077491,1774840242129,-48722.4677423,0.00010753,2]
[419077492,1774840242139,-500.0,0.00010822,2]
[419077493,1774840242148,-1600.0,0.00010888,2]
[419077494,1774840242159,-4996.92286626,0.000109,2]
[419077495,1774840242169,-4996.92286626,0.000109,2]
[419077496,1774840242179,-4996.92286626,0.000109,2]
[419077497,1774840242189,-500.0,0.00010959,2]
[419077498,1774840242199,-151.0,0.00010959,2]
[419077499,1774840242209,-151.0,0.00010959,2]
[419077500,1774840242218,-189.213513,0.00010959,2]
[419077501,1774840242228,-756.59196051,0.00010999,2]
[419077502,1774840242237,-5531.65655379,0.00011,2]
[419077503,1774840242246,-1310.737665,0.00011,2]
[419077504,1774840242255,-1310.737665,0.00011,2]
[419077505,1774840242264,-1310.737665,0.00011,2]
[419077506,1774840242274,-1310.737665,0.00011,2]
[419077507,1774840242283,-200.0,0.00011096,2]
[419077508,1774840242293,-21027.18401914,0.00011099,2]
[419077509,1774840242302,-21027.18401907,0.00011099,2]
[419077510,1774840242312,-21027.18401907,0.00011099,2]
[419077511,1774840242321,-21027.18401907,0.00011099,2]
[419077512,1774840242331,-150.0,0.00011233,2]
[419077513,1774840242340,-250.0,0.00011289,2]
[419077514,1774840242350,-3292.0,0.00011372,2]
[419077515,1774840242360,-736.0,0.00011374,2]
[419077516,1774840242370,-4653.0464224,0.00011516,2]
[419077517,1774840242379,-26609.76,0.00011624,2]
[419077518,1774840242388,-200.0,0.00011644,2]
[419077519,1774840242399,-4996.92286626,0.00011698,2]
[419077520,1774840242409,-21027.18401907,0.00011759,2]
[419077521,1774840242418,-585.8,0.00011833,30]
[419077522,1774840242428,-1600.0,0.00011877,2]
[419077523,1774840242437,-5884.0,0.0001188,5]
[419077524,1774840242447,-258.4137,0.000119,12]
[419077525,1774840242456,-200.0,0.00012,2]
[419077526,1774840242466,-200.0,0.00012192,2]
[419077527,1774840242475,-500.0,0.00012219,2]
[419077528,1774840242485,-173.533625,0.00012336,2]
[419077529,1774840242494,-394.125087,0.00012336,2]
[419077530,1774840242504,-2526.624807,0.00012336,2]
[419077531,1774840242513,-260.300436,0.00012336,2]
[419077532,1774840242522,-1554.330748,0.00012336,2]
[419077533,1774840242531,-743.643065,0.00012336,2]
[419077534,1774840242540,-260.300436,0.00012336,2]
[419077535,1774840242552,-495.448967,0.00012336,2]
[419077536,1774840242562,-5426.407477,0.00012336,2]
[419077537,1774840242572,-4243.49,0.00012341,2]
[419077538,1774840242582,-169.87814188,0.0001238,2]
[419077539,1774840242592,-305.78065538,0.0001238,2]
[419077540,1774840242601,-543.06644395,0.0001238,2]
[419077541,1774840242610,-168.24,0.00012481,2]
[419077542,1774840242619,-168.24,0.00012481,2]
[419077543,1774840242628,-157.0,0.000125,2]
[419077544,1774840242637,-157.0,0.000125,2]
[419077545,1774840242646,-4609.0,0.00012509,2]
[419077546,1774840242656,-1252.0,0.0001251,2]
[419077547,1774840242665,-21027.18401907,0.00012588,2]
[419077548,1774840242674,-151.0,0.00012588,2]
[419077549,1774840242683,-151.0,0.00012588,2]
[419077550,1774840242693,-151.0,0.00012588,2]
[419077551,1774840242702,-151.0,0.00012588,2]
[419077552,1774840242711,-172.191946,0.00012588,2]
[419077553,1774840242720,-172.191946,0.00012588,2]
[419077555,1774840242729,-172.191946,0.00012588,2]
[419077557,1774840242738,-172.191946,0.00012588,2]
[419077558,1774840242748,-2000.0,0.000127,2]
[419077560,1774840242757,-151.88410035,0.00012739,2]
[419077562,1774840242766,-200.0,0.0001274,2]
[419077564,1774840242775,-4996.92286626,0.00012749,2]
[419077566,1774840242785,-394.57333355,0.00012774,2]
[419077568,1774840242794,-385.35,0.00012774,2]
[419077570,1774840242804,-4653.0464224,0.00012863,2]
[419077572,1774840242813,-426.10763238,0.00012888,2]
[419077574,1774840242823,-2000.0,0.000129,2]
[419077576,1774840242832,-500.0,0.00012932,2]
[419077578,1774840242841,-385.35,0.00012954,2]
[419077580,1774840242851,-878.69,0.00012978,30]
[419077581,1774840242860,-250.0,0.00013,2]
[419077583,1774840242870,-385.36528309,0.00013044,2]
[419077584,1774840242879,-600.0,0.00013089,2]
[419077585,1774840242888,-157.0,0.000131,2]
[419077586,1774840242898,-157.0,0.000131,2]
[419077587,1774840242909,-200.0,0.00013151,2]
[419077588,1774840242918,-200.0,0.00013151,2]
[419077589,1774840242927,-200.0,0.00013151,2]
[419077590,1774840242936,-200.0,0.00013151,2]
[419077592,1774840242946,-200.0,0.00013151,2]
[419077594,1774840242955,-200.0,0.00013151,2]
[419077596,1774840242964,-200.0,0.00013151,2]
[419077597,1774840242974,-200.0,0.00013151,2]
[419077599,1774840242983,-200.0,0.00013151,2]
[419077601,1774840242992,-200.0,0.00013151,2]
[419077603,1774840243002,-200.0,0.00013151,2]
[419077605,1774840243011,-262.376114,0.00013151,2]
[419077606,1774840243021,-151.0,0.00013168,2]
[419077607,1774840243030,-151.0,0.00013168,2]
[419077608,1774840243041,-157.8,0.0001317,2]
[419077609,1774840243052,-308.47,0.00013205,2]
[419077610,1774840243063,-654.74068051,0.00013227,2]
[419077611,1774840243074,-152.0,0.00013237,3]
[419077612,1774840243085,-200.0,0.00013288,2]